bitfinex-derivatives/quotes_SOLF0:USTF0_20240926
["timestamp","ask_amount","ask_price","bid_price","bid_amount"]
[1727333603213,10.19,150.75,150.7,94.50238181]
[1727333603912,3.3176,150.73,150.7,97.82068181]
[1727333604721,3.3175,150.74,150.7,97.82068181]
[1727333606116,3.3175,150.74,150.7,18.20068181]
[1727333606918,10.19,150.73,150.67,11.5625]
[1727333607129,10.19,150.72,150.67,14.82967036]
[1727333607428,10.19,150.72,150.67,11.5625]
[1727333607730,3.3182,150.71,150.67,18.1677222]
[1727333607926,3.3182,150.71,150.67,7.9777222]
[1727333608123,3.3182,150.71,150.68,10.19]
[1727333608326,10.19,150.73,150.68,10.19]
[1727333608327,3.3184,150.7,150.68,10.19]
[1727333609222,3.3181,150.71,150.68,10.19]
[1727333610123,3.3181,150.71,150.68,10.14655818]
[1727333610429,3.3181,150.71,150.67,16.7953222]
[1727333613131,3.3181,150.71,150.68,3.3187]
[1727333615231,10.19,150.73,150.68,10.19]
[1727333615933,3.318,150.72,150.68,13.5087]
[1727333616930,13.5077,150.73,150.69,3.3184]
[1727333617434,10.19,150.73,150.69,3.3184]
[1727333618836,3.3179,150.72,150.69,3.3184]
[1727333620735,10.19,150.72,150.67,13.4764222]
[1727333620932,10.19,150.72,150.67,10.19]
[1727333621335,3.3183,150.71,150.67,13.5089]
[1727333621534,3.3183,150.71,150.67,16.84577699]
[1727333622232,10.19,150.69,150.64,153.92737494]
[1727333622632,10.19,150.69,150.64,164.11737494]
[1727333622832,10.19,150.69,150.65,3.3192]
[1727333623134,3.29206219,150.74,150.64,164.11737494]
[1727333623330,10.19,150.7,150.66,10.19]
[1727333623628,13.5084,150.7,150.66,13.5092]
[1727333624228,13.5081,150.71,150.66,10.19]
[1727333624430,10.19,150.73,150.67,10.19]
[1727333625235,1.2878,150.77,150.7,10.19]
[1727333625436,10.19,150.75,150.7,10.19]
[1727333625737,3.3177,150.73,150.7,13.5082]
[1727333626433,3.3177,150.73,150.7,10.19]
[1727333627634,10.19,150.73,150.64,74.28737494]
[1727333627841,10.19,150.7,150.65,10.19]
[1727333628940,3.3185,150.69,150.65,13.5092]
[1727333631245,10.19,150.7,150.65,10.19]
[1727333632434,3.3187,150.69,150.65,10.19]
[1727333633241,3.28989112,150.69,150.65,10.19]
[1727333634432,3.28989112,150.69,150.65,13.5094]
[1727333637143,3.3188,150.68,150.65,13.5094]
[1727333637741,3.3188,150.68,150.65,10.19]
[1727333638546,3.3188,150.68,150.65,13.5094]
[1727333640150,3.3186,150.69,150.65,13.5094]
[1727333642448,3.3188,150.68,150.65,13.5094]
[1727333643541,3.3186,150.69,150.66,3.3192]
[1727333643744,10.19,150.71,150.66,10.19]
[1727333644145,13.5083,150.71,150.67,3.3189]
[1727333644844,3.3183,150.7,150.67,3.3189]
[1727333646552,13.5082,150.71,150.67,3.3189]
[1727333647946,13.5082,150.71,150.68,3.3187]
[1727333648949,3.3182,150.71,150.68,3.3187]
[1727333649149,10.19,150.75,150.7,10.19]
[1727333649543,3.3176,150.74,150.7,13.5082]
[1727333654953,3.3176,150.74,150.7,10.19]
[1727333655153,13.5073,150.75,150.71,10.19]
[1727333655753,13.5073,150.75,150.72,3.3179]
[1727333656850,3.317,150.76,150.73,3.3176]
[1727333659459,13.5068,150.77,150.74,3.3174]
[1727333659653,3.3168,150.77,150.74,3.3174]
[1727333660053,11.4755,150.78,150.75,3.3172]
[1727333660054,13.5066,150.78,150.75,3.3172]
[1727333660255,10.19,150.78,150.73,10.19]
[1727333661758,10.19,150.78,150.7,3.28144327]
[1727333661759,2.5868,150.82,150.75,10.19]
[1727333661954,10.19,150.81,150.75,10.19]
[1727333662256,3.3165,150.78,150.75,13.5071]
[1727333670264,3.3165,150.78,150.75,10.19]
[1727333672964,3.3169,150.77,150.75,10.19]
[1727333673660,3.317,150.76,150.71,79.64]
[1727333673858,10.19,150.77,150.71,79.64]
[1727333674063,10.19,150.77,150.72,10.19]
[1727333674867,10.19,150.77,150.71,83.03473282]
[1727333674868,3.3173,150.75,150.71,83.03473282]
[1727333675065,3.3173,150.75,150.72,10.19]
[1727333676857,10.19,150.75,150.71,79.64]
[1727333677661,3.3176,150.74,150.7,13.5082]
[1727333678173,10.19,150.76,150.71,10.19]
[1727333678466,3.3176,150.74,150.71,10.19]
[1727333680572,3.3177,150.73,150.7,10.19]
[1727333684277,2.5868,150.82,150.72,10.19]
[1727333684476,10.19,150.77,150.72,10.19]
[1727333684871,2.5868,150.82,150.72,10.19]
[1727333685075,2.5868,150.82,150.69,4.63641271]
[1727333685076,3.3176,150.74,150.71,10.19]
[1727333685380,10.19,150.76,150.71,10.19]
[1727333685575,3.3175,150.74,150.71,10.19]
[1727333687679,3.3178,150.73,150.69,18.14481271]
[1727333694782,3.3179,150.72,150.69,14.7774]
[1727333695182,10.19,150.74,150.69,14.7774]
[1727333695381,3.3177,150.73,150.69,14.7774]
[1727333700389,3.3179,150.72,150.69,14.7774]
[1727333700784,3.3179,150.72,150.69,10.19]
[1727333701188,10.19,150.71,150.65,79.64]
[1727333701392,10.19,150.71,150.66,10.19]
[1727333701887,10.19,150.72,150.67,13.5088]
[1727333702482,10.19,150.72,150.67,10.19]
[1727333703290,10.19,150.73,150.68,10.19]
[1727333703792,10.19,150.76,150.71,10.19]
[1727333704288,3.3175,150.74,150.71,10.19]
[1727333705587,3.3175,150.74,150.71,13.5081]
[1727333706288,3.3173,150.75,150.71,13.5081]
[1727333707491,3.3175,150.74,150.71,13.5081]
[1727333713799,3.3172,150.75,150.73,10.19]
[1727333713993,3.9792,150.8,150.74,10.19]
[1727333714206,3.9792,150.8,150.75,10.19]
[1727333714207,2.6762,150.8,150.75,10.19]
[1727333714496,12.8662,150.8,150.75,10.19]
[1727333714901,3.3169,150.77,150.75,10.19]
[1727333715501,3.3166,150.78,150.75,13.5072]
[1727333716894,3.3164,150.79,150.77,10.19]
[1727333717704,3.3164,150.79,150.78,10.19]
[1727333718004,3.3161,150.8,150.78,10.19]
[1727333726411,3.3158,150.82,150.79,13.5063]
[1727333726615,3.3158,150.82,150.8,10.19]
[1727333728409,3.3156,150.83,150.81,10.19]
[1727333729112,2.6577,150.9,150.8,3.3161]
[1727333729113,3.3157,150.82,150.8,10.19]
[1727333729513,3.3157,150.82,150.79,3.3163]
[1727333730017,3.3157,150.82,150.8,10.19]
[1727333730421,3.3157,150.82,150.81,10.19]
[1727333731315,3.3155,150.83,150.81,10.19]
[1727333731718,3.3155,150.83,150.8,3.3161]
[1727333731719,10.19,150.86,150.82,10.19]
[1727333731918,3.3154,150.84,150.82,10.19]
[1727333733618,3.3154,150.83,150.82,10.19]
[1727333734409,3.3153,150.84,150.82,10.19]
[1727333736016,3.3159,150.81,150.77,3.3168]
[1727333736209,2.6577,150.9,150.69,2.6752]
[1727333736210,10.19,150.78,150.69,2.6752]
[1727333736409,13.21436145,150.89,150.69,2.6752]
[1727333736616,3.3167,150.78,150.74,10.19]
[1727333736818,3.3167,150.78,150.75,10.19]
[1727333738316,3.3168,150.77,150.75,10.19]
[1727333738723,3.3168,150.77,150.74,10.19]
[1727333740022,3.3168,150.77,150.69,6.03308135]
[1727333740023,10.19,150.77,150.73,10.19]
[1727333740224,10.19,150.77,150.71,10.19]
[1727333740618,3.3174,150.74,150.71,10.19]
[1727333741930,3.3176,150.73,150.69,6.03308135]
[1727333742231,3.3176,150.73,150.71,10.19]
[1727333743217,10.19,150.76,150.69,2.6752]
[1727333743421,10.19,150.76,150.7,10.19]
[1727333743823,3.318,150.72,150.7,10.19]
[1727333745224,3.3181,150.71,150.7,10.19]
[1727333745625,2.7396,150.79,150.7,10.19]
[1727333745928,3.3176,150.74,150.73,10.19]
[1727333748328,3.3178,150.73,150.71,10.19]
[1727333748624,10.19,150.76,150.71,10.19]
[1727333748821,3.3178,150.73,150.71,10.19]
[1727333749729,3.3171,150.76,150.72,10.19]
[1727333749929,3.3171,150.76,150.75,10.19]
[1727333751935,3.3171,150.76,150.74,10.19]
[1727333757640,3.3172,150.75,150.73,10.19]
[1727333757937,3.3172,150.75,150.72,10.19]
[1727333759239,3.3172,150.75,150.72,13.5079]
[1727333759931,3.317,150.76,150.72,13.5079]
[1727333760435,10.19,150.78,150.72,10.19]
[1727333760936,3.3173,150.75,150.72,10.19]
[1727333764829,3.3173,150.75,150.73,10.19]
[1727333766043,3.317,150.76,150.73,10.19]
[1727333767840,10.19,150.75,150.7,10.19]
[1727333768338,2.7543,150.79,150.7,10.19]
[1727333768339,3.318,150.72,150.7,10.19]
[1727333769737,3.318,150.72,150.69,4.58094259]
[1727333769935,3.3182,150.71,150.67,82.9389]
[1727333770147,10.19,150.71,150.67,79.62]
[1727333770742,2.7543,150.79,150.69,10.19]
[1727333770942,10.19,150.74,150.69,10.19]
[1727333771747,10.19,150.72,150.67,79.62]
[1727333771942,10.19,150.72,150.67,89.81]
[1727333772548,3.3185,150.69,150.67,79.62]
[1727333772751,3.3185,150.69,150.67,89.81]
[1727333774143,3.3185,150.69,150.67,79.62]
[1727333774645,3.3187,150.68,150.67,79.62]
[1727333774947,10.19,150.7,150.67,79.62]
[1727333775742,3.3187,150.69,150.67,79.62]
[1727333776645,3.3187,150.68,150.67,79.62]
[1727333776848,3.3187,150.68,150.65,76.26166322]
[1727333777050,3.3187,150.68,150.66,10.19]
[1727333777446,3.3187,150.68,150.65,76.26166322]
[1727333777646,3.3187,150.68,150.66,10.19]
[1727333778049,2.7543,150.79,150.67,10.19]
[1727333778249,10.19,150.73,150.68,10.19]
[1727333778744,3.3184,150.7,150.68,10.19]
[1727333778942,10.19,150.73,150.68,10.19]
[1727333779752,3.3181,150.71,150.68,13.5087]
[1727333780650,3.3179,150.72,150.7,10.19]
[1727333781046,10.19,150.74,150.7,10.19]
[1727333781752,3.318,150.72,150.7,10.19]
[1727333784946,3.3181,150.71,150.68,13.5086]
[1727333785148,3.3181,150.71,150.68,10.19]
[1727333785555,3.3183,150.7,150.67,3.3188]
[1727333785756,3.3183,150.7,150.67,13.5088]
[1727333787453,3.3181,150.71,150.68,13.5087]
[1727333790156,3.3184,150.7,150.66,9.34647304]
[1727333790459,3.3184,150.7,150.66,19.53647304]
[1727333792962,3.3184,150.7,150.68,10.19]
[1727333794766,3.318,150.72,150.68,13.5086]
[1727333794962,2.7543,150.79,150.71,10.19]
[1727333795169,10.19,150.76,150.72,10.19]
[1727333795362,3.3177,150.73,150.69,3.3184]
[1727333795671,3.3177,150.73,150.7,10.19]
[1727333799366,3.3177,150.73,150.69,13.5084]
[1727333799967,3.3179,150.72,150.69,13.5084]
[1727333800167,3.3179,150.72,150.69,10.19]
[1727333800366,3.3177,150.73,150.69,10.19]
[1727333800962,3.3177,150.73,150.69,13.5084]
[1727333808063,3.3177,150.73,150.66,6.02737304]
[1727333808064,10.19,150.73,150.68,10.19]
[1727333808672,10.19,150.73,150.66,6.02737304]
[1727333808867,10.19,150.73,150.68,10.19]
[1727333809265,10.19,150.73,150.68,13.5086]
[1727333809266,3.318,150.72,150.68,13.5086]
[1727333812775,3.318,150.72,150.68,3.3186]
[1727333813274,3.318,150.72,150.68,13.5086]
[1727333813475,3.3181,150.71,150.68,13.5086]
[1727333814174,3.3179,150.72,150.68,13.5086]
[1727333814971,2.7543,150.79,150.7,13.5083]
[1727333815176,10.19,150.75,150.7,10.19]
[1727333815575,3.3178,150.73,150.7,10.19]
[1727333815974,10.19,150.73,150.68,10.19]
[1727333816175,10.19,150.73,150.67,10.19]
[1727333816676,10.19,150.71,150.66,6.02737304]
[1727333816881,10.19,150.71,150.66,2.7559]
[1727333817075,2.7543,150.79,150.66,2.7559]
[1727333817076,10.19,150.7,150.66,2.7559]
[1727333817269,10.19,150.69,150.66,1.3518]
[1727333817478,10.19,150.69,150.64,79.64]
[1727333817875,3.3189,150.68,150.64,82.9596]
[1727333819182,3.3189,150.68,150.64,93.1496]
[1727333819377,3.3189,150.68,150.64,13.5096]
[1727333819771,11.08222914,150.77,150.67,10.19]
[1727333820073,10.19,150.72,150.67,10.19]
[1727333820480,3.3183,150.7,150.67,10.19]
[1727333825385,10.19,150.72,150.67,10.19]
[1727333826187,3.3182,150.71,150.67,13.5089]
[1727333828185,3.3182,150.71,150.66,3.26030077]
[1727333828186,3.3184,150.7,150.66,6.57930077]
[1727333828487,3.3184,150.7,150.66,13.509]
[1727333828888,3.3184,150.7,150.66,16.84764807]
[1727333829487,3.3184,150.7,150.67,3.3189]
[1727333829687,13.5082,150.71,150.67,13.5089]
[1727333831195,10.19,150.71,150.64,82.3954]
[1727333831388,10.19,150.71,150.66,10.19]
[1727333831786,3.3184,150.7,150.66,13.509]
[1727333832302,10.19,150.71,150.66,13.509]
[1727333833892,3.3185,150.69,150.66,10.19]
[1727333834094,10.19,150.69,150.64,2.7354]
[1727333834293,3.3189,150.68,150.65,4.7267159]
[1727333834593,3.3189,150.68,150.64,12.9254]
[1727333834981,11.08899194,150.78,150.62,79.66]
[1727333834982,10.19,150.66,150.62,79.66]
[1727333835786,3.3195,150.65,150.62,79.66]
[1727333836089,13.5095,150.65,150.62,79.66]
[1727333836290,3.3196,150.64,150.62,79.66]
[1727333837392,13.5095,150.65,150.62,79.66]
[1727333839196,10.19,150.65,150.63,3.3198]
[1727333839393,10.19,150.67,150.62,89.85]
[1727333840401,3.3194,150.65,150.62,89.85]
[1727333840794,3.30013543,150.72,150.62,89.85]
[1727333840997,10.19,150.68,150.62,89.85]
[1727333841597,3.3195,150.65,150.62,79.66]
[1727333841797,10.19,150.66,150.62,79.66]
[1727333842098,3.3192,150.66,150.62,82.9799]
[1727333842902,3.3194,150.65,150.62,82.9799]
[1727333843101,3.3194,150.65,150.62,3.3199]
[1727333843295,3.3194,150.65,150.61,13.5102]
[1727333844197,13.5097,150.64,150.6,3.3204]
[1727333844398,10.19,150.64,150.58,83.6438]
[1727333844600,10.19,150.64,150.58,93.8338]
[1727333845001,3.3202,150.62,150.58,97.1545]
[1727333845406,10.19,150.64,150.58,93.8338]
[1727333845903,3.32,150.63,150.59,3.3207]
[1727333848404,13.5098,150.64,150.6,3.3205]
[1727333848603,13.5098,150.64,150.6,13.5105]
[1727333849801,10.19,150.64,150.6,10.19]
[1727333850001,3.26360654,150.72,150.63,10.19]
[1727333850202,4.0551,150.74,150.63,10.19]
[1727333850203,10.19,150.67,150.63,10.19]
[1727333850403,3.3192,150.66,150.63,13.5098]
[1727333851007,3.3194,150.65,150.63,10.19]
[1727333851208,3.31063921,150.71,150.63,10.19]
[1727333851409,10.19,150.67,150.63,10.19]
[1727333852105,3.3192,150.66,150.63,13.5097]
[1727333852710,3.3196,150.65,150.62,3.32]
[1727333854514,3.3196,150.65,150.61,13.5102]
[1727333857013,3.3196,150.65,150.61,3.3202]
[1727333860213,3.3193,150.66,150.62,13.5101]
[1727333861016,3.3193,150.66,150.63,3.3198]
[1727333865116,4.0551,150.74,150.64,10.19]
[1727333865313,10.19,150.7,150.66,10.19]
[1727333866216,3.3187,150.68,150.66,10.19]
[1727333869317,4.0551,150.74,150.67,10.19]
[1727333869516,10.19,150.72,150.67,10.19]
[1727333870411,1.317,150.79,150.66,3.3615579]
[1727333870412,1.317,150.79,150.7,10.19]
[1727333870718,10.19,150.74,150.7,10.19]
[1727333870915,3.3178,150.73,150.7,13.5082]
[1727333871118,3.3178,150.73,150.7,10.19]
[1727333871514,3.3178,150.73,150.69,13.5084]
[1727333872319,3.3179,150.72,150.68,3.3187]
[1727333872520,1.317,150.79,150.68,13.5087]
[1727333872521,10.19,150.73,150.68,13.5087]
[1727333872721,10.19,150.73,150.68,3.3187]
[1727333873222,3.3179,150.72,150.68,3.3187]
[1727333874921,3.3181,150.71,150.67,17.503]
[1727333875221,10.19,150.71,150.67,1.3852]
[1727333875624,3.3185,150.7,150.67,1.3852]
[1727333875814,10.19,150.71,150.66,13.5091]
[1727333877923,10.19,150.7,150.66,3.3191]
[1727333879025,3.3185,150.69,150.66,3.3191]
[1727333882632,3.3185,150.69,150.65,13.5093]
[1727333884628,10.19,150.74,150.68,10.19]
[1727333884829,10.19,150.74,150.65,3.24137044]
[1727333884830,1.317,150.79,150.71,10.19]
[1727333885029,10.19,150.77,150.71,10.19]
[1727333885231,10.19,150.76,150.71,10.19]
[1727333886535,3.3176,150.74,150.71,10.19]
[1727333893637,3.3177,150.73,150.71,10.19]
[1727333895537,3.3177,150.73,150.7,3.3182]
[1727333895742,3.3177,150.73,150.71,10.19]
[1727333897846,3.3177,150.73,150.7,3.3182]
[1727333898046,3.3177,150.73,150.7,13.5082]
[1727333900545,10.19,150.75,150.7,10.19]
[1727333900745,3.3179,150.72,150.69,3.3185]
[1727333902445,3.3179,150.72,150.68,16.78406412]
[1727333902651,3.3179,150.72,150.68,13.5086]
[1727333903243,3.3179,150.72,150.68,16.75850308]
[1727333904743,3.3179,150.72,150.68,13.5086]
[1727333904947,3.3182,150.71,150.68,13.5086]
[1727333905253,3.3182,150.71,150.68,16.87701334]
[1727333905746,3.318,150.72,150.68,16.87701334]
[1727333906138,1.317,150.79,150.7,10.19]
[1727333906337,3.3177,150.73,150.7,10.19]
[1727333906946,3.3179,150.72,150.7,10.19]
[1727333908953,3.3177,150.73,150.7,10.19]
[1727333910353,3.3177,150.73,150.71,10.19]
[1727333911855,10.19,150.74,150.69,13.5084]
[1727333912857,3.3179,150.72,150.69,13.5084]
[1727333915356,3.3179,150.72,150.7,10.19]
[1727333916246,3.3178,150.73,150.7,10.19]
[1727333916446,10.19,150.78,150.72,10.19]
[1727333916848,3.3174,150.74,150.72,10.19]
[1727333924960,10.19,150.76,150.7,13.5082]
[1727333925660,3.3176,150.74,150.7,13.5082]
[1727333929662,3.3177,150.73,150.7,3.3182]
[1727333929963,10.19,150.74,150.69,10.19]
[1727333930556,3.318,150.72,150.69,13.5085]
[1727333932258,1.317,150.79,150.66,83.7035]
[1727333932259,10.19,150.7,150.66,83.7035]
[1727333932563,1.317,150.79,150.66,79.64]
[1727333932763,3.3185,150.7,150.66,82.9591]
[1727333933065,13.5085,150.7,150.66,3.3191]
[1727333933469,10.19,150.68,150.61,79.64]
[1727333933663,10.19,150.68,150.62,10.19]
[1727333933866,2.7138,150.72,150.62,10.19]
[1727333934164,10.19,150.68,150.62,10.19]
[1727333934865,3.3191,150.67,150.63,3.3197]
[1727333937064,10.19,150.68,150.62,13.5101]
[1727333937467,3.3192,150.66,150.63,13.5098]
[1727333937667,10.19,150.68,150.63,13.5098]
[1727333938771,3.319,150.67,150.63,13.5098]
[1727333939064,4.0934,150.72,150.64,13.5095]
[1727333939270,10.19,150.7,150.66,10.19]
[1727333939563,3.3187,150.69,150.66,10.19]
[1727333940469,3.3187,150.69,150.65,3.3193]
[1727333940470,3.3188,150.68,150.65,3.3193]
[1727333941168,10.19,150.66,150.61,79.64]
[1727333941369,10.19,150.66,150.61,89.83]
[1727333941562,10.19,150.66,150.62,4.73664275]
[1727333941766,3.3194,150.65,150.62,3.3199]
[1727333941964,10.19,150.66,150.62,3.3199]
[1727333942168,10.19,150.65,150.61,79.64]
[1727333942570,3.3198,150.64,150.61,79.64]
[1727333942868,3.3198,150.64,150.6,10.19]
[1727333943068,3.3198,150.64,150.61,4.73712518]
[1727333943270,3.3198,150.64,150.6,10.19]
[1727333943875,3.3198,150.64,150.61,4.73714868]
[1727333944274,3.3198,150.64,150.61,9.47415666]
[1727333944471,13.5099,150.63,150.61,9.47415666]
[1727333944674,13.5099,150.63,150.61,4.73714868]
[1727333946482,3.3199,150.63,150.61,4.73714868]
[1727333946788,4.0934,150.72,150.61,8.05734868]
[1727333947078,4.0934,150.72,150.62,10.19]
[1727333947271,4.0934,150.72,150.61,4.73714868]
[1727333947272,10.19,150.7,150.65,10.19]
[1727333947580,10.19,150.71,150.66,10.19]
[1727333947784,3.3187,150.69,150.66,10.19]
[1727333948276,3.3187,150.69,150.66,13.509]
[1727333949776,10.19,150.68,150.62,4.73521271]
[1727333949984,10.19,150.67,150.61,14.92714868]
[1727333950284,10.19,150.67,150.62,4.73598427]
[1727333950476,10.19,150.67,150.61,14.92714868]
[1727333950678,10.19,150.67,150.62,4.73611784]
[1727333950881,3.3194,150.65,150.62,3.32]
[1727333952678,7.35998944,150.72,150.63,3.3198]
[1727333952885,10.19,150.67,150.63,3.3198]
[1727333953488,13.5091,150.67,150.63,3.3198]
[1727333953792,13.5091,150.67,150.64,3.3196]
[1727333953984,3.3194,150.66,150.61,10.19]
[1727333954386,13.5094,150.66,150.61,10.19]
[1727333954587,13.5094,150.66,150.62,3.32]
[1727333956092,3.3194,150.65,150.62,3.32]
[1727333957996,13.5093,150.66,150.62,3.32]
[1727333961898,13.5093,150.66,150.62,13.51]
[1727333962197,13.5093,150.66,150.63,3.3198]
[1727333962599,3.3193,150.66,150.63,3.3198]
[1727333962897,10.19,150.67,150.64,3.3195]
[1727333963198,10.19,150.68,150.64,3.3195]
[1727333964398,10.19,150.68,150.64,13.5095]
[1727333964594,3.3188,150.68,150.64,13.5095]
[1727333965192,3.3188,150.68,150.65,10.19]
[1727333966898,3.3188,150.68,150.65,13.5093]
[1727333968997,3.3188,150.68,150.65,3.3193]
[1727333969203,13.5086,150.69,150.65,3.3193]
[1727333969595,10.19,150.7,150.65,10.19]
[1727333969802,13.5084,150.7,150.65,10.19]
[1727333970204,10.19,150.7,150.65,10.19]
[1727333971799,3.3186,150.69,150.66,3.319]
[1727333972798,10.19,150.67,150.6,7.57396217]
[1727333972997,10.19,150.66,150.62,10.19]
[1727333973902,10.19,150.66,150.64,3.3195]
[1727333974498,1.3513,150.72,150.65,3.3194]
[1727333974499,3.3186,150.69,150.65,3.3194]
[1727333974802,10.19,150.68,150.65,3.3194]
[1727333978907,13.5087,150.68,150.65,3.3194]
[1727333979104,10.19,150.67,150.64,3.3195]
[1727333981709,13.509,150.67,150.64,3.3195]
[1727333985107,3.3188,150.68,150.64,3.3195]
[1727333985306,2.6718,150.76,150.67,10.19]
[1727333985507,3.9577,150.76,150.69,10.19]
[1727333985712,3.3177,150.73,150.69,10.19]
[1727333986010,3.3177,150.73,150.7,3.3183]
[1727333987414,3.3177,150.73,150.69,13.5085]
[1727333988902,13.5077,150.73,150.69,13.5085]
[1727333992120,13.5077,150.73,150.69,3.3185]
[1727333992315,13.5077,150.73,150.69,13.5085]
[1727333997616,10.19,150.72,150.67,10.19]
[1727333998725,3.3182,150.71,150.68,3.3187]
[1727333999626,13.5082,150.71,150.68,3.3187]
[1727334000229,13.5079,150.72,150.69,3.3184]
[1727334000424,3.9577,150.76,150.68,10.19]
[1727334000625,3.9577,150.76,150.71,10.19]
[1727334000923,3.35623551,150.81,150.72,10.19]
[1727334001123,10.19,150.76,150.72,10.19]
[1727334001518,13.5071,150.76,150.73,3.3176]
[1727334001929,10.19,150.76,150.72,10.19]
[1727334002131,3.3173,150.75,150.72,13.5078]
[1727334002329,10.19,150.76,150.72,10.19]
[1727334002525,3.3169,150.77,150.73,13.5074]
[1727334002730,3.3169,150.77,150.73,10.19]
[1727334003334,3.3166,150.78,150.74,10.19]
[1727334003727,3.3168,150.77,150.74,3.3173]
[1727334007229,13.5066,150.78,150.74,3.3173]
[1727334008425,3.3166,150.78,150.74,3.3173]
[1727334008637,4.0028,150.86,150.77,10.19]
[1727334009029,3.3156,150.83,150.8,13.5061]
[1727334009634,3.3153,150.84,150.8,13.5061]
[1727334010237,3.3155,150.83,150.8,13.5061]
[1727334010636,3.3155,150.83,150.8,3.3161]
[1727334010836,3.3158,150.82,150.79,10.19]
[1727334011138,10.19,150.84,150.79,10.19]
[1727334011741,3.3156,150.83,150.79,13.5062]
[1727334012932,3.3158,150.82,150.79,10.19]
[1727334013234,2.7101,150.86,150.79,10.19]
[1727334013743,3.3157,150.82,150.79,10.19]
[1727334015547,3.3155,150.83,150.8,10.19]
[1727334016646,3.3155,150.83,150.8,13.5061]
[1727334016845,3.3153,150.84,150.81,10.19]
[1727334017748,3.3153,150.84,150.81,13.5058]
[1727334019748,3.3151,150.85,150.82,13.5056]
[1727334020849,3.3151,150.85,150.82,10.19]
[1727334021245,1.3452,150.9,150.84,10.19]
[1727334021447,10.19,150.89,150.84,10.19]
[1727334022247,3.3147,150.87,150.85,10.19]
[1727334022452,11.5352,150.9,150.85,10.19]
[1727334022956,3.3146,150.87,150.84,13.5051]
[1727334024750,3.3148,150.86,150.83,13.5054]
[1727334024951,10.19,150.86,150.78,72.89316916]
[1727334025152,10.19,150.86,150.81,10.19]
[1727334025848,3.3153,150.84,150.81,13.5058]
[1727334026757,3.3155,150.83,150.8,3.316]
[1727334027057,3.3155,150.83,150.8,13.506]
[1727334028150,13.5053,150.84,150.8,13.506]
[1727334029656,3.3153,150.84,150.81,10.19]
[1727334030155,3.3151,150.85,150.82,10.19]
[1727334030553,3.3151,150.85,150.83,10.19]
[1727334030756,10.19,150.88,150.83,10.19]
[1727334031059,3.3149,150.86,150.83,10.19]
[1727334031257,10.19,150.87,150.82,10.19]
[1727334031660,10.19,150.85,150.79,3.3162]
[1727334031957,10.19,150.85,150.79,10.19]
[1727334032161,1.4038,150.89,150.8,10.19]
[1727334032361,1.4038,150.89,150.81,3.3158]
[1727334032362,3.3151,150.85,150.81,3.3158]